fUST/lending_fUST_20250227
["ID","MTS","AMOUNT","RATE_DAILY","PERIOD"]
[354686745,1740617439340,-500.0,0.00036199,2]
[354686746,1740617439350,-500.0,0.00036199,15]
[354686747,1740617439360,-500.0,0.00036199,15]
[354686748,1740617439369,-500.0,0.00036199,15]
[354686749,1740617439379,-500.0,0.00036199,15]
[354686750,1740617439388,-500.0,0.00036199,15]
[354686751,1740617439398,-500.0,0.00036199,15]
[354686752,1740617439408,-480.0,0.00036199,15]
[354686753,1740617439417,-500.0,0.00036199,15]
[354686754,1740617439426,-500.0,0.00036199,15]
[354686755,1740617439435,-500.0,0.00036199,15]
[354686756,1740617439444,-395.84612875,0.00036199,15]
[354686757,1740617439453,-166790.68,0.000362,30]
[354686758,1740617439463,-6617.67,0.000362,30]
[354686759,1740617439472,-179.43,0.000362,7]
[354686760,1740617439482,-1076.01,0.000362,30]
[354686761,1740617439491,-3541.17,0.000362,30]
[354686762,1740617439501,-6992.52,0.000362,30]
[354686763,1740617439511,-7622.8195015,0.000362,98]
[354686764,1740617439520,-7622.81950148,0.000362,98]
[354686765,1740617439529,-823.0,0.0003741,2]
[354686766,1740617439539,-1500.0,0.00037588,7]
[354686767,1740617439551,-500.0,0.000376,5]
[354686768,1740617439560,-500.0,0.00037833,5]
[354686769,1740617439569,-500.0,0.00037833,5]
[354686770,1740617439579,-500.0,0.00037833,5]
[354686771,1740617439590,-500.0,0.00037833,5]
[354686772,1740617439599,-500.0,0.00037833,5]
[354686773,1740617439609,-500.0,0.00037833,5]
[354686774,1740617439618,-500.0,0.00037833,5]
[354686775,1740617439628,-649.90987727,0.00037833,5]
[354686776,1740617439638,-633.4218264,0.00037833,5]
[354686777,1740617439648,-500.0,0.00037833,5]
[354686778,1740617439659,-500.0,0.00037833,5]
[354686779,1740617439669,-500.0,0.00037833,5]
[354686780,1740617439679,-270.26566065,0.00037833,5]
[354686781,1740617439689,-500.0,0.00037833,5]
[354686782,1740617439699,-500.0,0.00037833,5]
[354686783,1740617439710,-500.0,0.00037833,5]
[354686784,1740617439720,-500.0,0.00037833,5]
[354686785,1740617439729,-500.0,0.00037833,5]
[354686786,1740617439739,-500.0,0.00037833,5]
[354686787,1740617439748,-500.0,0.00037833,5]
[354686788,1740617439757,-203.066117,0.00037833,5]
[354686789,1740617439767,-170.0810519,0.00037833,5]
[354686790,1740617439777,-619.2763,0.00037833,5]
[354686791,1740617439786,-500.0,0.00037833,5]
[354686792,1740617439796,-500.0,0.00037833,5]
[354686793,1740617439805,-500.0,0.00037833,5]
[354686794,1740617439815,-500.0,0.00037833,5]
[354686795,1740617439824,-16768.96475318,0.00038,120]
[354686796,1740617439833,-501.13031386,0.0003816,5]
[354686797,1740617439842,-500.0,0.0003816,5]
[354686798,1740617439852,-7622.81950148,0.00039492,117]
[354686799,1740617439861,-18000.0,0.00039699,120]
[354686800,1740617439870,-500.0,0.0004,30]
[354686801,1740617439879,-924.0,0.00040325,5]
[354686802,1740617439889,-6992.52,0.000405,30]
[354686803,1740617439898,-231.63808074,0.00040838,32]
[354686804,1740617439909,-166790.68,0.000411,30]
[354686805,1740617439918,-6617.67,0.000411,30]
[354686806,1740617439927,-1076.01,0.000411,30]
[354686807,1740617439936,-3541.17,0.000411,30]
[354686808,1740617439946,-153.91353284,0.00041288,2]
[354686809,1740617439955,-151.0,0.000424,15]
[354686810,1740617439966,-702.803,0.00043041,66]
[354686811,1740617439976,-237.90476766,0.00043079,10]
[354686812,1740617439986,-500.0,0.00043313,10]
[354686813,1740617439995,-1000.0,0.00043313,7]
[354686814,1740617440005,-500.0,0.00043313,10]
[354686815,1740617440014,-1002.47157931,0.00043313,7]
[354686816,1740617440024,-567.34905296,0.00043313,7]
[354686817,1740617440033,-1000.0,0.00043313,10]
[354686818,1740617440042,-1000.0,0.00043313,10]
[354686819,1740617440051,-1000.0,0.00043313,10]
[354686820,1740617440061,-1000.0,0.00043313,10]
[354686821,1740617440070,-500.0,0.00043313,10]
[354686822,1740617440079,-1000.0,0.00043313,10]
[354686823,1740617440089,-624.785987,0.00043313,10]
[354686824,1740617440098,-1000.0,0.00043313,10]
[354686825,1740617440107,-151.0,0.000435,18]
[354686826,1740617440116,-31086.01,0.00043561,120]
[354686827,1740617440125,-500.0,0.00043639,10]
[354686828,1740617440134,-6992.52,0.000438,30]
[354686829,1740617440144,-150.22433501,0.00044261,28]
[354686830,1740617440153,-151.0,0.000443,20]
[354686831,1740617440162,-179.43,0.000443,30]
[354686832,1740617440171,-7622.81950148,0.00044354,120]
[354686834,1740617440181,-151.0,0.000445,12]
[354686836,1740617440190,-10000.0,0.00044579,120]
[354686837,1740617440199,-151.0,0.00045,120]
[354686839,1740617440209,-500.0,0.00045,120]
[354686841,1740617440220,-1340.01457049,0.00045084,2]
[354686843,1740617440230,-151.0,0.000451,23]
[354686845,1740617440239,-151.0,0.000452,24]
[354686847,1740617440249,-379.213969,0.00045323,2]
[354686849,1740617440261,-151.0,0.000454,25]
[354686851,1740617440270,-1076.01,0.000454,30]
[354686853,1740617440281,-3541.17,0.000454,30]
[354686855,1740617440291,-17348.23386755,0.000455,60]
[354686857,1740617440301,-151.0,0.000455,27]
[354686859,1740617440311,-151.0,0.000455,25]
[354686861,1740617440320,-5366.78,0.00045615,110]
[354686863,1740617440330,-3678.99,0.00045618,110]
[354686865,1740617440341,-3762.866,0.00045628,90]
[354686868,1740617440351,-3866.899,0.00045648,110]
[354686869,1740617440361,-151.0,0.000457,28]
[354686872,1740617440370,-3566.788,0.0004578,90]
[354686874,1740617440379,-151.0,0.000458,23]
[354686876,1740617440388,-6992.52,0.000458,30]
[354686878,1740617440397,-5377.29318957,0.0004588,110]
[354686880,1740617440406,-166790.68,0.000459,30]
[354686882,1740617440415,-6617.67,0.000459,30]
[354686883,1740617440425,-151.0,0.00046,27]
[354686885,1740617440434,-151.0,0.000461,26]
[354686887,1740617440443,-157.498203,0.00046196,2]
[354686889,1740617440452,-151.0,0.000463,24]
[354686892,1740617440462,-2061.67442763,0.00046314,2]
[354686894,1740617440472,-151.0,0.000464,26]
[354686897,1740617440482,-3166.9624567,0.00046449,4]
[354686900,1740617440491,-153.91353284,0.00046475,2]
[354686903,1740617440500,-3000.0,0.00046475,2]
[354686906,1740617440509,-500000.361,0.000465,120]
[354686909,1740617440518,-64691.45747049,0.00046572,30]
[354686911,1740617440528,-500.0,0.00046573,10]
[354686914,1740617440537,-500.0,0.00046573,10]
[354686915,1740617440547,-500.0,0.00046573,10]
[354686916,1740617440556,-500.0,0.00046573,10]
[354686917,1740617440565,-500.0,0.00046573,10]
[354686918,1740617440574,-525.38238231,0.00046573,10]
[354686919,1740617440584,-500.0,0.00046573,10]
[354686920,1740617440593,-500.0,0.00046573,3]
[354686921,1740617440602,-500.000001,0.00046573,10]
[354686922,1740617440612,-162.50923626,0.00046573,10]
[354686923,1740617440621,-500.0,0.00046573,10]
[354686924,1740617440630,-500.0,0.00046573,10]
[354686925,1740617440639,-500.0,0.00046573,10]
[354686926,1740617440648,-500.0,0.00046573,10]
[354686927,1740617440657,-501.11670376,0.00046573,10]
[354686928,1740617440667,-500.0,0.00046573,10]
[354686929,1740617440676,-500.0,0.00046573,10]
[354686930,1740617440685,-500.0,0.00046573,10]
[354686938,1740617440870,-500.0,0.00046573,10]
[354686939,1740617440881,-500.0,0.00046573,10]
[354686940,1740617440891,-500.0,0.00046573,10]
[354686941,1740617440900,-500.0,0.00046573,10]
[354686942,1740617440910,-500.0,0.00046573,10]
[354686943,1740617440919,-500.0,0.00046573,10]
[354686944,1740617440928,-500.0,0.00046573,10]
[354686945,1740617440937,-500.0,0.00046573,10]
[354686946,1740617440946,-500.0,0.00046573,10]
[354686947,1740617440955,-500.0,0.00046573,10]
[354686948,1740617440966,-500.0,0.00046573,10]
[354686949,1740617440975,-160.0,0.00046574,30]
[354686950,1740617440985,-500.0,0.00046575,120]
[354686951,1740617440994,-500.0,0.00046575,30]
[354686952,1740617441003,-501.58367414,0.00046575,120]
[354686953,1740617441013,-500.0,0.00046575,120]
[354686954,1740617441023,-500.0,0.00046575,120]
[354686955,1740617441032,-500.0,0.00046575,120]
[354686956,1740617441042,-500.0,0.00046575,120]
[354686957,1740617441052,-500.0,0.00046575,120]
[354686958,1740617441061,-500.0,0.00046575,120]
[354686959,1740617441071,-621.79719613,0.00046575,120]
[354686960,1740617441080,-500.0,0.00046575,120]
[354686961,1740617441090,-500.0,0.00046575,120]
[354686962,1740617441099,-500.0,0.00046575,120]
[354686963,1740617441108,-500.0,0.00046575,120]
[354686964,1740617441118,-500.0,0.00046575,120]
[354686965,1740617441127,-500.0,0.00046575,120]
[354686966,1740617441137,-500.0,0.00046575,120]
[354686967,1740617441146,-500.0,0.00046575,120]
[354686968,1740617441155,-513.78827645,0.00046575,120]
[354686969,1740617441164,-500.0,0.00046575,120]
[354686970,1740617441174,-596.827152,0.00046575,120]
[354686971,1740617441183,-500.0,0.00046575,120]
[354686972,1740617441192,-500.0,0.00046575,120]
[354686973,1740617441202,-255.95974716,0.00046575,120]
[354686974,1740617441211,-500.0,0.00046575,120]
[354686975,1740617441221,-500.0,0.00046575,120]
[354686976,1740617441230,-500.0,0.00046575,120]
[354686977,1740617441239,-505.48553179,0.00046575,14]
[354686978,1740617441250,-500.0,0.00046575,120]
[354686979,1740617441263,-532.52365038,0.00046575,120]
[354686980,1740617441273,-500.0,0.00046575,120]
[354686981,1740617441282,-500.95597778,0.00046575,15]
[354686982,1740617441292,-500.0,0.00046575,120]
[354686983,1740617441302,-500.0,0.00046575,120]
[354686984,1740617441312,-151.0,0.00046575,120]
[354686985,1740617441321,-500.0,0.00046575,120]
[354686986,1740617441331,-500.0,0.00046575,120]
[354686987,1740617441340,-500.0,0.00046575,120]
[354686988,1740617441349,-500.0,0.00046575,120]
[354686989,1740617441359,-500.0,0.00046575,120]
[354686990,1740617441368,-862.4,0.00046575,120]
[354686991,1740617441377,-500.0,0.00046575,120]
[354686992,1740617441386,-727.75,0.00046575,120]
[354686993,1740617441396,-500.0,0.00046575,120]
[354686994,1740617441406,-500.0,0.00046575,120]
[354686995,1740617441416,-505.16079368,0.00046575,120]
[354686996,1740617441426,-500.0,0.00046575,120]
[354686997,1740617441435,-500.0,0.00046575,120]
[354686998,1740617441444,-500.0,0.00046575,120]
[354686999,1740617441454,-500.0,0.00046575,120]
[354687000,1740617441463,-583.82884349,0.00046575,120]
[354687001,1740617441473,-500.0,0.00046575,120]
[354687002,1740617441483,-500.0,0.00046575,120]
[354687003,1740617441492,-500.0,0.00046575,120]
[354687004,1740617441501,-389.95259309,0.00046575,120]
[354687005,1740617441510,-500.0,0.00046575,120]
[354687006,1740617441521,-500.0,0.00046575,120]
[354687007,1740617441533,-500.0,0.00046575,120]
[354687008,1740617441543,-500.0,0.00046575,120]
[354687009,1740617441554,-500.0,0.00046575,120]
[354687010,1740617441563,-500.0,0.00046575,120]
[354687011,1740617441573,-500.0,0.00046575,10]
[354687012,1740617441582,-500.0,0.00046575,120]
[354687013,1740617441591,-500.0,0.00046575,120]
[354687014,1740617441600,-250.0,0.00046575,120]
[354687015,1740617441610,-500.0,0.00046575,120]
[354687016,1740617441619,-696.4,0.00046575,120]
[354687017,1740617441628,-500.0,0.00046575,120]
[354687018,1740617441638,-500.0,0.00046575,120]
[354687019,1740617441648,-500.0,0.00046575,120]
[354687020,1740617441657,-500.0,0.00046575,120]
[354687021,1740617441666,-500.0,0.00046575,120]
[354687022,1740617441676,-500.0,0.00046575,120]
[354687023,1740617441685,-500.0,0.00046575,120]
[354687024,1740617441694,-500.0,0.00046575,120]
[354687025,1740617441703,-500.0,0.00046575,120]
[354687026,1740617441713,-500.0,0.00046575,120]
[354687027,1740617441723,-500.0,0.00046575,120]
[354687028,1740617441732,-500.0,0.00046575,120]
[354687029,1740617441741,-500.0,0.00046575,120]
[354687030,1740617441751,-500.0,0.00046575,120]
[354687031,1740617441760,-500.0,0.00046575,120]
[354687032,1740617441770,-432.65898097,0.00046575,120]
[354687177,1740617448696,-70.82776892,0.00046575,120]
[354687178,1740617448706,-188.38379432,0.00046575,120]
[354687179,1740617448715,-500.0,0.00046575,120]
[354687180,1740617448727,-500.0,0.00046575,120]
[354687181,1740617448738,-3000.0,0.00046575,120]
[354687182,1740617448747,-500.0,0.00046575,120]
[354687183,1740617448756,-500.0,0.00046575,120]
[354687184,1740617448766,-649.39492309,0.00046575,120]
[354687185,1740617448775,-500.0,0.00046575,120]
[354687186,1740617448784,-500.0,0.00046575,120]
[354687187,1740617448794,-647.43,0.00046575,120]
[354687188,1740617448803,-500.0,0.00046575,120]
[354687189,1740617448813,-500.0,0.00046575,120]
[354687190,1740617448822,-500.0,0.00046575,120]
[354687191,1740617448831,-500.0,0.00046575,120]
[354687192,1740617448840,-652.06,0.00046575,120]
[354687193,1740617448850,-500.0,0.00046575,120]
[354687194,1740617448859,-500.0,0.00046575,120]
[354687195,1740617448868,-500.0,0.00046575,120]
[354687196,1740617448877,-500.0,0.00046575,120]
[354687197,1740617448887,-500.0,0.00046575,120]
[354687198,1740617448896,-500.0,0.00046575,120]
[354687199,1740617448906,-500.0,0.00046575,120]
[354687200,1740617448915,-500.0,0.00046575,120]
[354687201,1740617448924,-501.01894448,0.00046575,120]
[354687202,1740617448934,-500.0,0.00046575,120]
[354687203,1740617448943,-500.0,0.00046575,120]
[354687204,1740617448952,-500.0,0.00046575,120]
[354687205,1740617448961,-500.0,0.00046575,120]
[354687206,1740617448972,-943.3,0.00046575,120]
[354687207,1740617448981,-500.0,0.00046575,120]
[354687208,1740617448991,-500.0,0.00046575,120]
[354687209,1740617449000,-500.0,0.00046575,120]
[354687210,1740617449010,-500.0,0.00046575,120]
[354687211,1740617449019,-500.0,0.00046575,120]
[354687212,1740617449028,-500.0,0.00046575,120]
[354687213,1740617449038,-500.0,0.00046575,120]
[354687214,1740617449047,-500.0,0.00046575,120]
[354687215,1740617449057,-500.64,0.00046575,120]
[354687216,1740617449067,-500.0,0.00046575,120]
[354687217,1740617449076,-500.0,0.00046575,120]
[354687218,1740617449086,-500.0,0.00046575,120]
[354687219,1740617449095,-500.0,0.00046575,120]
[354687220,1740617449105,-500.0,0.00046575,120]
[354687221,1740617449114,-500.0,0.00046575,120]
[354687222,1740617449123,-711.9,0.00046575,120]
[354687223,1740617449133,-500.0,0.00046575,120]
[354687224,1740617449142,-500.0,0.00046575,120]
[354687225,1740617449151,-500.0,0.00046575,120]
[354687226,1740617449160,-500.0,0.00046575,120]
[354687227,1740617449170,-500.0,0.00046575,120]
[354687228,1740617449179,-500.0,0.00046575,120]
[354687229,1740617449188,-505.04014969,0.00046575,120]
[354687230,1740617449198,-271.23331169,0.00046575,120]
[354687231,1740617449207,-245.60066,0.00046575,120]
[354687232,1740617449216,-500.0,0.00046575,120]
[354687233,1740617449229,-500.0,0.00046575,120]
[354687234,1740617449238,-500.0,0.00046575,120]
[354687235,1740617449248,-500.0,0.00046575,120]
[354687236,1740617449257,-500.0,0.00046575,120]
[354687237,1740617449271,-500.0,0.00046575,120]
[354687238,1740617449281,-500.0,0.00046575,120]
[354687239,1740617449292,-500.0,0.00046575,120]
[354687240,1740617449301,-500.0,0.00046575,120]
[354687241,1740617449310,-500.0,0.00046575,120]
[354687242,1740617449320,-500.0,0.00046575,120]
[354687243,1740617449329,-500.0,0.00046575,120]
[354687244,1740617449340,-500.0,0.00046575,120]
[354687245,1740617449349,-606.25807251,0.00046575,120]
[354687246,1740617449359,-500.0,0.00046575,120]
[354687247,1740617449369,-500.0,0.00046575,120]
[354687248,1740617449379,-500.0,0.00046575,120]
[354687249,1740617449388,-444.87985504,0.00046575,120]
[354687250,1740617449398,-500.0,0.00046575,120]
[354687251,1740617449407,-500.0,0.00046575,120]
[354687252,1740617449417,-740.06,0.00046575,120]
[354687253,1740617449426,-336.63753871,0.00046575,120]
[354687254,1740617449435,-500.0,0.00046575,120]
[354687255,1740617449445,-500.0,0.00046575,120]
[354687256,1740617449456,-414.95828024,0.00046575,120]
[354687257,1740617449465,-500.0,0.00046575,120]
[354687258,1740617449478,-500.0,0.00046575,120]
[354687259,1740617449488,-500.0,0.00046575,120]
[354687260,1740617449497,-500.0,0.00046575,120]
[354687261,1740617449506,-170.59416875,0.00046575,120]
[354687262,1740617449516,-500.0,0.00046575,120]
[354687263,1740617449525,-338.51989003,0.00046575,120]
[354687264,1740617449535,-500.0,0.00046575,120]
[354687265,1740617449544,-500.0,0.00046575,120]
[354687266,1740617449554,-158.88548038,0.00046575,120]
[354687267,1740617449563,-627.29,0.00046575,120]
[354687268,1740617449572,-500.0,0.00046575,120]
[354687269,1740617449582,-500.0,0.00046575,120]
[354687270,1740617449591,-724.4,0.00046575,120]
[354687271,1740617449600,-698.55,0.00046575,120]
[354687272,1740617449609,-500.0,0.00046575,120]
[354687273,1740617449619,-500.0,0.00046575,120]
[354687274,1740617449628,-500.0,0.00046575,120]
[354687275,1740617449637,-600.68764208,0.00046575,120]
[354687276,1740617449647,-500.0,0.00046575,120]
[354687277,1740617449656,-500.0,0.00046575,120]
[354687278,1740617449665,-500.0,0.00046575,120]
[354687279,1740617449675,-550.62,0.00046575,120]
[354687280,1740617449684,-500.0,0.00046575,120]
[354687281,1740617449694,-500.0,0.00046575,120]
[354687282,1740617449704,-500.0,0.00046575,120]
[354687283,1740617449714,-500.0,0.00046575,120]
[354687284,1740617449726,-500.0,0.00046575,120]
[354687285,1740617449735,-2088.49,0.00046575,120]
[354687286,1740617449744,-500.0,0.00046575,120]
[354687287,1740617449753,-418.66492704,0.00046575,120]
[354687288,1740617449762,-500.0,0.00046575,120]
[354687289,1740617449772,-378.14783404,0.00046575,120]
[354687290,1740617449781,-500.0,0.00046575,120]
[354687291,1740617449791,-500.0,0.00046575,120]
[354687292,1740617449800,-500.0,0.00046575,120]
[354687293,1740617449810,-500.0,0.00046575,120]
[354687294,1740617449819,-500.0,0.00046575,120]
[354687295,1740617449829,-1045.5,0.00046575,120]
[354687296,1740617449838,-605.8,0.00046575,120]
[354687297,1740617449847,-500.0,0.00046575,120]
[354687298,1740617449857,-500.0,0.00046575,120]
[354687299,1740617449866,-500.0,0.00046575,120]
[354687300,1740617449876,-178.350074,0.00046575,120]
[354687301,1740617449885,-500.0,0.00046575,120]
[354687302,1740617449895,-231.90120028,0.00046575,120]
[354687303,1740617449904,-504.46098639,0.00046575,120]
[354687304,1740617449914,-178.350074,0.00046575,120]
[354687305,1740617449922,-510.1733964,0.00046575,120]
[354687306,1740617449932,-519.95,0.00046575,120]
[354687307,1740617449942,-664.48,0.00046575,120]
[354687308,1740617449953,-500.0,0.00046575,120]
[354687309,1740617449962,-501.79088958,0.00046575,120]
[354687310,1740617449972,-500.0,0.00046575,120]
[354687311,1740617449981,-661.79,0.00046575,120]
[354687312,1740617449990,-500.0,0.00046575,120]
[354687313,1740617449999,-617.27,0.00046575,120]
[354687314,1740617450009,-500.0,0.00046575,120]
[354687315,1740617450018,-500.0,0.00046575,120]
[354687316,1740617450028,-500.0,0.00046575,120]
[354687317,1740617450037,-508.18512307,0.00046575,120]
[354687318,1740617450046,-500.0,0.00046575,120]
[354687319,1740617450055,-500.0,0.00046575,120]
[354687320,1740617450065,-500.0,0.00046575,120]
[354687321,1740617450074,-500.0,0.00046575,120]
[354687322,1740617450083,-500.0,0.00046575,120]
[354687323,1740617450093,-500.0,0.00046575,120]
[354687324,1740617450102,-500.0,0.00046575,120]
[354687325,1740617450111,-500.0,0.00046575,120]
[354687326,1740617450120,-444.15585492,0.00046575,120]
[354687327,1740617450130,-500.0,0.00046575,120]
[354687328,1740617450139,-500.0,0.00046575,120]
[354687329,1740617450149,-500.0,0.00046575,120]
[354687330,1740617450158,-500.0,0.00046575,120]
[354687331,1740617450167,-500.0,0.00046575,120]
[354687332,1740617450176,-556.48,0.00046575,120]
[354687333,1740617450185,-500.0,0.00046575,120]
[354687334,1740617450195,-500.0,0.00046575,120]
[354687335,1740617450204,-592.61581309,0.00046575,120]
[354687336,1740617450213,-500.0,0.00046575,120]
[354687337,1740617450224,-500.0,0.00046575,120]
[354687338,1740617450233,-500.0,0.00046575,120]
[354687339,1740617450243,-500.0,0.00046575,120]
[354687340,1740617450252,-500.0,0.00046575,120]
[354687341,1740617450262,-500.0,0.00046575,120]
[354687342,1740617450273,-500.0,0.00046575,2]
[354687343,1740617450282,-2322.14,0.00046575,120]
[354687344,1740617450292,-500.0,0.00046575,120]
[354687345,1740617450302,-500.0,0.00046575,120]
[354687346,1740617450311,-500.0,0.00046575,120]
[354687347,1740617450321,-500.0,0.00046575,120]
[354687348,1740617450330,-500.0,0.00046575,20]
[354687349,1740617450340,-1620.19,0.00046575,120]
[354687350,1740617450350,-500.0,0.00046575,20]
[354687351,1740617450359,-500.0,0.00046575,120]
[354687352,1740617450368,-500.0,0.00046575,20]
[354687353,1740617450377,-500.0,0.00046575,20]
[354687354,1740617450387,-500.0,0.00046575,20]
[354687355,1740617450396,-771.57,0.00046575,120]
[354687356,1740617450405,-500.0,0.00046575,120]
[354687357,1740617450414,-500.0,0.00046575,120]
[354687358,1740617450423,-500.0,0.00046575,120]
[354687359,1740617450432,-584.6,0.00046575,120]
[354687360,1740617450442,-500.0,0.00046575,120]
[354687361,1740617450451,-500.0,0.00046575,120]
[354687362,1740617450461,-500.0,0.00046575,120]
[354687363,1740617450473,-500.0,0.00046575,120]
[354687364,1740617450482,-500.0,0.00046575,120]
[354687365,1740617450491,-500.0,0.00046575,120]
[354687366,1740617450500,-500.0,0.00046575,120]
[354687367,1740617450509,-2069.71,0.00046575,120]
[354687368,1740617450518,-500.0,0.00046575,120]
[354687369,1740617450527,-500.0,0.00046575,120]
[354687370,1740617450536,-500.0,0.00046575,120]
[354687371,1740617450545,-500.0,0.00046575,120]
[354687372,1740617450554,-500.0,0.00046575,120]
[354687373,1740617450564,-500.0,0.00046575,120]
[354687374,1740617450573,-2122.91,0.00046575,120]
[354687375,1740617450582,-500.0,0.00046575,120]
[354687376,1740617450591,-500.0,0.00046575,120]
[354687377,1740617450599,-500.0,0.00046575,120]
[354687378,1740617450608,-500.0,0.00046575,120]
[354687379,1740617450618,-524.68314094,0.00046575,120]
[354687380,1740617450626,-500.0,0.00046575,120]
[354687381,1740617450635,-490.08041905,0.00046575,120]
[354687382,1740617450645,-500.0,0.00046575,120]
[354687383,1740617450654,-500.0,0.00046575,120]
[354687384,1740617450664,-500.0,0.00046575,120]
[354687385,1740617450673,-500.0,0.00046575,120]
[354687386,1740617450682,-151.0,0.00046575,120]
[354687387,1740617450691,-500.0,0.00046575,120]
[354687388,1740617450700,-500.0,0.00046575,120]
[354687389,1740617450709,-500.0,0.00046575,120]
[354687390,1740617450719,-500.0,0.00046575,120]
[354687391,1740617450728,-500.0,0.00046575,120]
[354687392,1740617450737,-500.0,0.00046575,120]
[354687393,1740617450746,-500.0,0.00046575,120]
[354687394,1740617450756,-500.0,0.00046575,120]
[354687395,1740617450765,-500.0,0.00046575,120]
[354687396,1740617450774,-527.66301337,0.00046575,120]
[354687397,1740617450783,-818.01,0.00046575,120]
[354687398,1740617450792,-500.0,0.00046575,120]
[354687399,1740617450801,-500.0,0.00046575,120]
[354687400,1740617450810,-501.48426829,0.00046575,120]
[354687401,1740617450819,-500.0,0.00046575,120]
[354687402,1740617450828,-500.0,0.00046575,120]
[354687403,1740617450837,-300.0,0.00046575,120]
[354687404,1740617450846,-151.0,0.00046575,30]
[354687405,1740617450855,-500.0,0.00046575,120]
[354687406,1740617450864,-500.0,0.00046575,120]
[354687407,1740617450873,-510.08,0.00046575,120]
[354687408,1740617450882,-500.0,0.00046575,120]
[354687409,1740617450891,-173.068997,0.00046575,120]
[354687410,1740617450900,-500.0,0.00046575,30]
[354687411,1740617450909,-500.0,0.00046575,120]
[354687412,1740617450918,-500.0,0.00046575,120]
[354687413,1740617450927,-500.0,0.00046575,120]
[354687414,1740617450936,-500.0,0.00046575,120]
[354687415,1740617450946,-500.0,0.00046575,120]
[354687416,1740617450955,-500.0,0.00046575,120]
[354687417,1740617450965,-224.38,0.00046575,120]
[354687418,1740617450975,-2227.14,0.00046575,120]
[354687419,1740617450985,-500.0,0.00046575,120]
[354687420,1740617450994,-529.24,0.00046575,120]
[354687421,1740617451003,-500.0,0.00046575,120]
[354687422,1740617451012,-500.0,0.00046575,120]
[354687423,1740617451165,-500.0,0.00046575,120]
[354687424,1740617451176,-1358.48,0.00046575,120]
[354687425,1740617451186,-500.0,0.00046575,120]
[354687426,1740617451196,-500.0,0.00046575,120]
[354687427,1740617451207,-1405.33,0.00046575,120]
[354687428,1740617451216,-521.19701814,0.00046575,120]
[354687429,1740617451228,-501.70713642,0.00046575,120]
[354687430,1740617451237,-513.67,0.00046575,120]
[354687431,1740617451246,-1246.15,0.00046575,120]
[354687432,1740617451259,-577.04,0.00046575,120]
[354687433,1740617451268,-500.0,0.00046575,120]
[354687434,1740617451278,-500.0,0.00046575,120]
[354687435,1740617451288,-500.0,0.00046575,120]
[354687436,1740617451299,-500.0,0.00046575,120]
[354687437,1740617451308,-500.0,0.00046575,120]
[354687438,1740617451317,-1197.05,0.00046575,120]
[354687439,1740617451327,-679.63,0.00046575,120]